[Event "11th LCC FIDE Open 2019"]
[Site "London"]
[Date "2019.11.30"]
[Round "2.44"]
[White "Willmoth, Robert F"]
[Black "Brian Makwele"]
[Result "1-0"]
[ECO "C26"]
[WhiteElo "2108"]
[BlackElo "1910"]
[Annotator "NA"]
[PlyCount "75"]
[EventDate "2019.11.29"]
[EventType "swiss"]
[EventCountry "ENG"]
[SourceTitle "playchess.com"]
[Source "ChessBase"]
[SourceQuality "1"]
[TimeControl "40/5400+30:1800+30"]

1. e4 {[%emt 0:00:13]} e5 {[%emt 0:08:08]} 2. Nc3 {[%emt 0:00:03]} Nf6 {[%emt 0:00:05]} 3. g3 {[%emt 0:00:05]} c6 {[%emt 0:01:19]} 4. d4 {[%emt 0:00:25]} exd4 {[%emt 0:02:00]} 5. Qxd4 {[%emt 0:00:03]} c5 {[%emt 0:01:45]} 6. Qd1 {[%emt 0:01:28]} Nc6 {[%emt 0:00:35]} 7. Bg2 {[%emt 0:01:19]} Be7 {[%emt 0:02:09]} 8. Nge2 {[%emt 0:00:59]} O-O {[%emt 0:00:56]} 9. O-O {[%emt 0:00:05]} d6 {[%emt 0:03:13]} 10. h3 {[%emt 0:00:42]} Re8 {[%emt 0:05:18]} 11. Be3 {[%emt 0:02:34]} Ne5 {[%emt 0:05:20]} 12. f4 {[%emt 0:00:29]} Nc4 {[%emt 0:01:42] [#] Double Attack} 13. Bc1 $1 {[%emt 0:00:05]} Be6 {[%emt 0:01:17]} 14. b3 {[%emt 0:02:34]} Nb6 {[%emt 0:03:21]} 15. Bb2 {[%emt 0:01:55]} (15. a4 $16) 15... Qc8 {[%emt 0:17:00]} 16. f5 {[%emt 0:01:09]} Bd7 {[%emt 0:02:40]} 17. g4 {[%emt 0:00:22]} Bc6 {[%emt 0:04:02]} 18. Nf4 {[%emt 0:05:22]} Qc7 {[%emt 0:04:26]} 19. g5 {[%emt 0:04:02]} Nfd7 {[%emt 0:01:45]} 20. Qh5 {[%emt 0:00:07]} Ne5 {[%emt 0:02:56]} 21. g6 {[%emt 0:10:13]} hxg6 {[%emt 0:00:40]} 22. fxg6 {[%emt 0:00:06]} fxg6 {[%emt 0:03:24]} 23. Nxg6 {[%emt 0:01:43]} Nxg6 {[%emt 0:00:17]} 24. Qxg6 $18 {[%emt 0:00:41]} Bf8 {[%emt 0:03:08]} 25. Rf4 {[%emt 0:06:45]} Qe7 {[%emt 0:10:16]} 26. Raf1 {[%emt 0:01:58]} Qe6 {[%emt 0:10:02]} 27. Rf6 {[%emt 0:01:16]} Qe5 {[%emt 0:01:00]} 28. Nd5 {[%emt 0:03:06]} Nxd5 {[%emt 0:03:03]} 29. Bxe5 {[%emt 0:00:16]} Nxf6 {[%emt 0:01:28]} 30. Bxf6 {[%emt 0:00:23]} Re6 {[%emt 0:00:45]} 31. Qg4 {[%emt 0:03:03]} Bd7 {[%emt 0:00:38]} 32. Bc3 {[%emt 0:00:30]} Rae8 {[%emt 0:00:47]} 33. e5 {[%emt 0:01:08]} Bc6 {[%emt 0:01:00]} 34. Bxc6 {[%emt 0:00:15]} bxc6 {[%emt 0:00:02]} 35. Rf6 {[%emt 0:01:09]} R6e7 {[%emt 0:00:45]} 36. exd6 {[%emt 0:00:13]} Re2 {[%emt 0:01:07]} 37. Rxf8+ {[%emt 0:00:11]} Rxf8 {[%emt 0:00:09]} 38. Qxg7# {[%emt 0:00:09]} 1-0

[Event "11th LCC FIDE Open 2019"]
[Site "London"]
[Date "2019.11.30"]
[Round "2.45"]
[White "Granat, Russell G"]
[Black "Drastik, Penelope"]
[Result "0-1"]
[ECO "B31"]
[WhiteElo "2207"]
[BlackElo "1759"]
[Annotator "ChessBase"]
[PlyCount "34"]
[EventDate "2019.11.29"]
[EventType "swiss"]
[EventCountry "ENG"]
[SourceTitle "playchess.com"]
[Source "ChessBase"]
[SourceQuality "1"]
[TimeControl "40/5400+30:1800+30"]

1. e4 {[%emt 0:00:00]} c5 {[%emt 0:00:00]} 2. Be2 {[%emt 0:00:09]} Nc6 {[%emt 0:00:03]} 3. d3 {[%emt 0:00:36]} g6 {[%emt 0:00:37]} 4. c3 {[%emt 0:00:42]} d5 {[%emt 0:01:36]} 5. f4 {[%emt 0:03:20]} dxe4 {[%emt 0:02:18]} 6. dxe4 {[%emt 0:00:07]} Qxd1+ {[%emt 0:00:02]} 7. Bxd1 {[%emt 0:00:05]} Bg7 {[%emt 0:04:14]} 8. Be3 {[%emt 0:00:38]} Nb4 {[%emt 0:10:58]} 9. Nf3 {[%emt 0:37:07]} Nd3+ {[%emt 0:02:00]} 10. Ke2 {[%emt 0:03:20]} Nxb2 {[%emt 0:02:07]} 11. Bb3 {[%emt 0:07:03]} b6 {[%emt 0:03:32]} 12. Bc1 {[%emt 0:13:30]} Ba6+ {[%emt 0:01:22]} 13. Ke3 {[%emt 0:00:07]} Nc4+ {[%emt 0:03:10]} 14. Bxc4 {[%emt 0:01:07]} Bxc4 {[%emt 0:00:06]} 15. Rd1 {[%emt 0:01:16]} Nf6 {[%emt 0:12:41]} 16. Ne5 {[%emt 0:00:44]} Ba6 {[%emt 0:00:24]} 17. c4 {[%emt 0:00:42]} Ng8 {[%emt 0:00:56]} 0-1

[Event "11th LCC FIDE Open 2019"]
[Site "London"]
[Date "2019.11.30"]
[Round "2.46"]
[White "Gopakumar, Siddharth"]
[Black "Vaishali, R."]
[Result "0-1"]
[ECO "B01"]
[WhiteElo "1848"]
[BlackElo "2376"]
[Annotator "NA"]
[PlyCount "76"]
[EventDate "2019.11.29"]
[EventType "swiss"]
[EventCountry "ENG"]
[SourceTitle "playchess.com"]
[Source "ChessBase"]
[SourceQuality "1"]
[TimeControl "40/5400+30:1800+30"]

1. e4 {[%emt 0:00:00]} d5 {[%emt 0:00:43]} 2. exd5 {[%emt 0:00:00]} Qxd5 {[%emt 0:00:05]} 3. Nc3 {[%emt 0:00:00]} Qa5 {[%emt 0:00:04]} 4. d4 {[%emt 0:00:00]} c6 {[%emt 0:00:10]} 5. Bc4 {[%emt 0:00:27]} Bf5 {[%emt 0:01:02]} 6. Nf3 {[%emt 0:00:39]} e6 {[%emt 0:02:17]} 7. O-O {[%emt 0:02:37]} Nf6 {[%emt 0:03:09]} 8. Bd2 {[%emt 0:10:40]} Qc7 {[%emt 0:04:56]} 9. Bg5 {[%emt 0:08:57]} Nbd7 {[%emt 0:01:59]} 10. Qe2 {[%emt 0:03:12]} Bd6 {[%emt 0:05:58]} 11. Rfe1 {[%emt 0:05:16]} O-O {[%emt 0:05:48]} 12. Bd3 {[%emt 0:05:29]} Bxd3 {[%emt 0:08:59]} 13. Qxd3 $11 {[%emt 0:00:09]} h6 {[%emt 0:01:44]} 14. Bh4 {[%emt 0:02:47]} Rfe8 {[%emt 0:02:56]} 15. Rad1 {[%emt 0:10:48]} a6 {[%emt 0:10:55]} 16. Bxf6 {[%emt 0:13:14]} Nxf6 {[%emt 0:00:08]} 17. Ne4 {[%emt 0:00:05]} Nxe4 {[%emt 0:06:26]} 18. Qxe4 {[%emt 0:01:04]} Qa5 {[%emt 0:02:36]} 19. a3 {[%emt 0:06:53]} Qb5 {[%emt 0:03:24]} 20. Re3 {[%emt 0:00:52]} Qd5 {[%emt 0:06:14]} 21. Nd2 {[%emt 0:10:43]} Bxh2+ {[%emt 0:03:20]} 22. Kf1 {[%emt 0:01:09]} Bc7 {[%emt 0:01:06]} 23. Qxd5 {[%emt 0:00:18]} cxd5 {[%emt 0:00:22]} 24. c4 {[%emt 0:00:10]} dxc4 {[%emt 0:01:25]} 25. Nxc4 {[%emt 0:00:01]} Red8 {[%emt 0:00:45]} 26. Red3 {[%emt 0:00:58]} Kf8 {[%emt 0:08:27]} 27. d5 {[%emt 0:03:42]} exd5 {[%emt 0:00:39]} 28. Rxd5 {[%emt 0:00:07]} Rxd5 {[%emt 0:00:36]} 29. Rxd5 {[%emt 0:00:02]} Rd8 {[%emt 0:00:07]} 30. Rxd8+ {[%emt 0:01:12]} Bxd8 {[%emt 0:00:02]} 31. g4 {[%emt 0:02:43]} Ke7 {[%emt 0:01:05]} 32. Ke2 {[%emt 0:00:12]} Ke6 {[%emt 0:00:23]} 33. Kd3 {[%emt 0:01:17]} b5 {[%emt 0:00:59]} 34. Ne3 {[%emt 0:01:16]} Bb6 {[%emt 0:00:42]} 35. Nf5 {[%emt 0:00:05]} g6 {[%emt 0:00:28]} 36. Nxh6 {[%emt 0:00:34]} Bxf2 {[%emt 0:00:16]} 37. Ke4 {[%emt 0:00:09]} Bh4 {[%emt 0:01:15]} 38. Kf4 {[%emt 0:01:02]} Kf6 {[%emt 0:00:19]} 0-1

[Event "11th LCC FIDE Open 2019"]
[Site "London"]
[Date "2019.11.30"]
[Round "2.47"]
[White "Manfay, Mate"]
[Black "Hughes, Anthony"]
[Result "1-0"]
[ECO "A10"]
[WhiteElo "2197"]
[BlackElo "1874"]
[Annotator "NA"]
[PlyCount "131"]
[EventDate "2019.11.29"]
[EventType "swiss"]
[EventCountry "ENG"]
[SourceTitle "playchess.com"]
[Source "ChessBase"]
[SourceQuality "1"]
[TimeControl "40/5400+30:1800+30"]

1. c4 {[%emt 0:00:00]} f5 {[%emt 0:00:00]} 2. Nc3 {[%emt 0:01:12]} Nf6 {[%emt 0:00:13]} 3. g3 {[%emt 0:00:19]} e6 {[%emt 0:04:11]} 4. Bg2 {[%emt 0:00:17]} Be7 {[%emt 0:00:06]} 5. d3 {[%emt 0:00:46]} O-O {[%emt 0:00:13]} 6. e4 {[%emt 0:01:42]} d6 {[%emt 0:02:10]} 7. exf5 {[%emt 0:00:23]} exf5 {[%emt 0:00:07]} 8. Nge2 {[%emt 0:00:38]} Nc6 {[%emt 0:03:09]} 9. O-O {[%emt 0:01:08]} Ne5 {[%emt 0:20:00]} 10. b3 {[%emt 0:14:50]} c6 {[%emt 0:03:01]} 11. d4 {[%emt 0:01:50]} Ng6 $16 {[%emt 0:00:27]} 12. d5 {[%emt 0:13:56]} Qc7 {[%emt 0:04:06]} 13. dxc6 {[%emt 0:03:34]} bxc6 {[%emt 0:00:52]} 14. Nd4 {[%emt 0:07:16]} d5 {[%emt 0:15:50]} 15. cxd5 {[%emt 0:12:41]} Bb4 {[%emt 0:02:26]} 16. Nde2 {[%emt 0:13:45]} Ba6 {[%emt 0:10:26]} 17. d6 {[%emt 0:06:13]} Bxd6 {[%emt 0:03:11]} 18. Qc2 {[%emt 0:03:47]} Rae8 {[%emt 0:04:38]} 19. Rd1 {[%emt 0:01:15]} Be5 {[%emt 0:05:36]} 20. Ba3 {[%emt 0:03:27]} Bxe2 {[%emt 0:02:09]} 21. Nxe2 {[%emt 0:02:24]} Bxa1 {[%emt 0:00:57]} 22. Bxf8 {[%emt 0:00:05]} Kxf8 {[%emt 0:01:07]} 23. Rxa1 {[%emt 0:00:54]} Qe5 {[%emt 0:00:35]} 24. Nc3 {[%emt 0:00:42]} Rd8 {[%emt 0:09:34]} 25. Rc1 {[%emt 0:00:51]} Qc5 {[%emt 0:01:55]} 26. h3 {[%emt 0:02:28]} f4 {[%emt 0:00:13]} 27. Ne4 {[%emt 0:01:01]} Qxc2 {[%emt 0:03:43]} 28. Rxc2 {[%emt 0:00:01]} fxg3 {[%emt 0:00:18]} 29. fxg3 {[%emt 0:00:37]} Rd1+ {[%emt 0:00:52]} 30. Kf2 {[%emt 0:00:33]} Ne5 {[%emt 0:00:22]} 31. Nxf6 {[%emt 0:00:46]} gxf6 {[%emt 0:00:02]} 32. Bxc6 {[%emt 0:01:13]} Nxc6 {[%emt 0:00:22]} 33. Rxc6 {[%emt 0:00:06]} Rd2+ {[%emt 0:00:02]} 34. Ke3 {[%emt 0:00:39]} Rxa2 {[%emt 0:00:03]} 35. Rxf6+ {[%emt 0:00:05]} Kg7 {[%emt 0:00:10]} 36. Rc6 {[%emt 0:02:05]} Rb2 {[%emt 0:00:24]} 37. Rc7+ {[%emt 0:00:09]} Kg6 {[%emt 0:00:05]} 38. Rb7 {[%emt 0:00:57]} a5 {[%emt 0:00:11]} 39. Rb6+ {[%emt 0:00:18]} Kg7 {[%emt 0:00:09]} 40. Rb5 {[%emt 0:00:38]} Ra2 {[%emt 0:00:48]} 41. Kf4 {[%emt 0:31:35]} a4 {[%emt 0:30:47]} 42. Rb7+ {[%emt 0:03:00]} Kg6 {[%emt 0:01:02]} 43. Rb6+ {[%emt 0:00:00]} Kg7 {[%emt 0:00:00]} 44. Kg5 {[%emt 0:00:00]} axb3 {[%emt 0:00:00]} 45. Rb7+ {[%emt 0:00:00]} Kg8 {[%emt 0:00:00]} 46. Rxb3 {[%emt 0:00:00]} Ra5+ {[%emt 0:00:00]} 47. Kf4 {[%emt 0:00:00]} Ra4+ {[%emt 0:00:00]} 48. Kf3 {[%emt 0:00:00]} Kg7 {[%emt 0:00:00]} 49. Rb5 {[%emt 0:00:00]} Kg6 {[%emt 0:00:00]} 50. Re5 {[%emt 0:00:00]} Rb4 {[%emt 0:00:00]} 51. Re4 {[%emt 0:00:00]} Rxe4 {[%emt 0:00:00]} 52. Kxe4 {[%emt 0:00:00]} Kg5 {[%emt 0:00:00]} 53. Ke5 {[%emt 0:00:00]} Kg6 {[%emt 0:00:00]} 54. Ke6 {[%emt 0:00:00]} Kg7 {[%emt 0:00:00]} 55. Ke7 {[%emt 0:00:00]} Kg6 {[%emt 0:00:00]} 56. Kf8 {[%emt 0:00:00]} Kf6 {[%emt 0:00:00]} 57. Kg8 {[%emt 0:00:00]} Kg6 {[%emt 0:00:00]} 58. Kh8 {[%emt 0:00:00]} Kh6 {[%emt 0:00:00]} 59. g4 {[%emt 0:00:00]} Kg6 {[%emt 0:00:00]} 60. h4 {[%emt 0:00:00]} h5 {[%emt 0:01:25]} 61. g5 {[%emt 0:00:00]} Kf5 {[%emt 0:00:55]} 62. Kh7 {[%emt 0:00:00]} Kg4 {[%emt 0:00:04]} 63. g6 {[%emt 0:00:00]} Kxh4 {[%emt 0:00:07]} 64. g7 {[%emt 0:00:00]} Kh3 {[%emt 0:01:07]} 65. g8=Q {[%emt 0:00:00]} h4 {[%emt 0:00:19]} 66. Qg5 {[%emt 0:00:00]} 1-0

[Event "11th LCC FIDE Open 2019"]
[Site "London"]
[Date "2019.11.30"]
[Round "2.48"]
[White "Ciocan, Maria-Alexandra"]
[Black "Davis, Holden"]
[Result "0-1"]
[ECO "C17"]
[WhiteElo "2058"]
[BlackElo "1840"]
[Annotator "NA"]
[PlyCount "58"]
[EventDate "2019.11.29"]
[EventType "swiss"]
[EventCountry "ENG"]
[SourceTitle "playchess.com"]
[Source "ChessBase"]
[SourceQuality "1"]
[TimeControl "40/5400+30:1800+30"]

1. e4 {[%emt 0:00:00]} e6 {[%emt 0:00:45]} 2. d4 {[%emt 0:00:00]} d5 {[%emt 0:00:21]} 3. Nc3 {[%emt 0:00:00]} Bb4 {[%emt 0:00:38]} 4. e5 {[%emt 0:00:00]} c5 {[%emt 0:00:08]} 5. Qg4 {[%emt 0:00:07]} Ne7 {[%emt 0:00:08]} ({Wrong is} 5... cxd4 $2 6. Qxg7 dxc3 7. b3 $18) 6. dxc5 {[%emt 0:03:18]} Nbc6 {[%emt 0:02:00]} 7. Bd2 {[%emt 0:01:06]} O-O {[%emt 0:01:37]} 8. Nf3 {[%emt 0:06:17]} f5 {[%emt 0:06:32]} 9. exf6 {[%emt 0:27:34]} (9. Qg3 $11 {keeps the balance.}) 9... Rxf6 {[%emt 0:00:15]} 10. O-O-O $17 {[%emt 0:01:02]} e5 {[%emt 0:05:51]} 11. Qh5 {[%emt 0:01:18]} g6 {[%emt 0:10:35]} 12. Qg5 {[%emt 0:02:56]} Rf5 {[%emt 0:07:16]} 13. Qg3 {[%emt 0:03:03]} Bxc5 {[%emt 0:21:09]} 14. Bg5 {[%emt 0:06:59]} Qa5 {[%emt 0:02:08]} 15. Nxd5 {[%emt 0:37:27]} Qxa2 {[%emt 0:10:35]} 16. Nxe7+ {[%emt 0:00:52]} Nxe7 {[%emt 0:02:41]} 17. Rd8+ {[%emt 0:05:02]} Kg7 {[%emt 0:00:30]} 18. c3 {[%emt 0:00:11]} Qa1+ {[%emt 0:01:52]} 19. Kc2 {[%emt 0:00:05]} Qa4+ {[%emt 0:14:58]} 20. Kc1 {[%emt 0:00:04]} h6 {[%emt 0:01:40]} 21. Bd2 {[%emt 0:01:46]} Bb6 {[%emt 0:05:24]} 22. Rd6 {[%emt 0:00:27]} Bc7 {[%emt 0:00:09]} 23. Rd4 {[%emt 0:01:18]} Qa1+ {[%emt 0:02:20]} 24. Kc2 {[%emt 0:00:05]} exd4 {[%emt 0:00:27]} 25. Qxc7 {[%emt 0:00:04]} Rf7 {[%emt 0:00:46]} 26. Qe5+ {[%emt 0:00:50]} Kh7 {[%emt 0:00:19]} 27. h4 {[%emt 0:00:31]} Bf5+ {[%emt 0:00:15]} 28. Kb3 {[%emt 0:00:46]} Qd1+ {[%emt 0:00:34]} 29. Ka2 {[%emt 0:00:40]} Qa4# {[%emt 0:00:08] Ng1} 0-1

[Event "11th LCC FIDE Open 2019"]
[Site "London"]
[Date "2019.11.30"]
[Round "2.49"]
[White "Tombolis, Christopher"]
[Black "Nettleton, Charlie B"]
[Result "1-0"]
[ECO "A51"]
[WhiteElo "1824"]
[BlackElo "2058"]
[Annotator "NA"]
[PlyCount "47"]
[EventDate "2019.11.29"]
[EventType "swiss"]
[EventCountry "ENG"]
[SourceTitle "playchess.com"]
[Source "ChessBase"]
[SourceQuality "1"]
[TimeControl "40/5400+30:1800+30"]

1. d4 {[%emt 0:51:37]} Nf6 {[%emt 0:00:07]} 2. c4 {[%emt 0:00:09]} e5 {[%emt 0:00:06]} 3. dxe5 {[%emt 0:00:04]} Ne4 {[%emt 0:00:05]} 4. Qc2 {[%emt 0:02:56]} Bb4+ {[%emt 0:00:29]} 5. Bd2 {[%emt 0:04:21]} Nxd2 {[%emt 0:01:19]} 6. Nxd2 {[%emt 0:00:02]} Nc6 {[%emt 0:00:28]} 7. Ngf3 {[%emt 0:00:54]} Qe7 {[%emt 0:00:27]} 8. O-O-O {[%emt 0:04:36]} Nxe5 {[%emt 0:04:28]} 9. Nxe5 {[%emt 0:00:27]} Qxe5 {[%emt 0:00:09]} 10. Nf3 {[%emt 0:00:00]} Qf6 {[%emt 0:07:15]} 11. e3 {[%emt 0:04:47]} O-O {[%emt 0:04:50]} 12. Bd3 {[%emt 0:02:38]} g6 {[%emt 0:06:21]} 13. h4 {[%emt 0:04:49]} Re8 {[%emt 0:02:15] [#]} 14. h5 $1 {[%emt 0:00:47]} Bf8 $18 {[%emt 0:00:45]} 15. hxg6 {[%emt 0:00:47]} hxg6 {[%emt 0:01:09]} 16. Rh4 {[%emt 0:01:44]} Bg7 {[%emt 0:08:59]} 17. Rf4 {[%emt 0:02:10]} Qe7 {[%emt 0:02:49]} 18. Rh1 {[%emt 0:01:43]} Rf8 {[%emt 0:02:10]} 19. Nh4 {[%emt 0:05:54]} Qd6 {[%emt 0:10:34]} 20. c5 {[%emt 0:02:47]} Qc6 {[%emt 0:01:54]} 21. Nxg6 {[%emt 0:01:07]} Re8 {[%emt 0:03:51]} 22. Bc4 {[%emt 0:06:56]} d5 {[%emt 0:00:16]} 23. cxd6 {[%emt 0:00:01]} Be6 {[%emt 0:03:35]} 24. Ne7+ {[%emt 0:00:06]} 1-0

[Event "11th LCC FIDE Open 2019"]
[Site "London"]
[Date "2019.11.30"]
[Round "2.50"]
[White "Eche, Sylvain"]
[Black "Covey, Jason"]
[Result "1-0"]
[ECO "C02"]
[WhiteElo "2054"]
[BlackElo "1773"]
[Annotator "NA"]
[PlyCount "87"]
[EventDate "2019.11.29"]
[EventType "swiss"]
[EventCountry "ENG"]
[SourceTitle "playchess.com"]
[Source "ChessBase"]
[SourceQuality "1"]
[TimeControl "40/5400+30:1800+30"]

1. e4 {[%emt 0:00:00]} e6 {[%emt 0:00:00]} 2. d4 {[%emt 0:00:00]} d5 {[%emt 0:00:04]} 3. e5 {[%emt 0:00:00]} c5 {[%emt 0:00:14]} 4. c3 {[%emt 0:00:00]} Nc6 {[%emt 0:00:37]} 5. Nf3 {[%emt 0:00:00]} Bd7 {[%emt 0:00:27]} 6. a3 {[%emt 0:00:04]} f6 {[%emt 0:00:26]} 7. Bd3 {[%emt 0:00:22]} cxd4 {[%emt 0:02:30]} 8. cxd4 {[%emt 0:00:30]} fxe5 {[%emt 0:02:29]} 9. Nxe5 {[%emt 0:01:54]} Nf6 {[%emt 0:00:46]} 10. Nxc6 {[%emt 0:02:31]} Bxc6 {[%emt 0:01:55]} 11. O-O {[%emt 0:03:34]} Bd6 {[%emt 0:04:30]} 12. Re1 {[%emt 0:01:55]} Bd7 {[%emt 0:01:03]} 13. Nc3 {[%emt 0:03:58]} O-O {[%emt 0:02:05]} 14. Bg5 {[%emt 0:03:51]} Qb6 $11 {[%emt 0:05:51]} 15. Bc2 {[%emt 0:10:47]} Rac8 {[%emt 0:10:55]} 16. Re3 {[%emt 0:09:43]} h6 {[%emt 0:05:53]} 17. Bh4 {[%emt 0:02:50]} Rc4 {[%emt 0:10:45]} 18. Ne2 {[%emt 0:13:14]} Bxh2+ {[%emt 0:03:04]} 19. Kxh2 {[%emt 0:05:12]} Ng4+ {[%emt 0:00:08]} 20. Kg1 {[%emt 0:05:06]} Nxe3 {[%emt 0:00:16]} 21. fxe3 {[%emt 0:00:24]} Qxb2 {[%emt 0:00:39]} 22. Bb3 {[%emt 0:09:58]} Ba4 {[%emt 0:02:28]} 23. Bxa4 {[%emt 0:00:16]} Rxa4 {[%emt 0:00:09]} 24. Be7 {[%emt 0:00:38]} Rf7 {[%emt 0:01:02]} 25. Rb1 {[%emt 0:02:50]} Qa2 {[%emt 0:00:07]} 26. Rxb7 {[%emt 0:00:39]} Qc4 {[%emt 0:02:39]} 27. Rb8+ {[%emt 0:01:59]} Kh7 {[%emt 0:00:08]} 28. Bb4 {[%emt 0:00:37]} Ra6 {[%emt 0:01:27]} 29. Nf4 {[%emt 0:03:09]} g6 {[%emt 0:03:11]} 30. Nxg6 {[%emt 0:05:35]} Kxg6 {[%emt 0:01:45]} 31. Qg4+ {[%emt 0:00:45]} Kf6 {[%emt 0:00:05]} 32. Qf4+ {[%emt 0:00:56]} Kg7 {[%emt 0:00:07]} 33. Bf8+ {[%emt 0:00:30]} Kg6 {[%emt 0:00:40]} 34. Qxh6+ {[%emt 0:02:52]} Kf5 {[%emt 0:00:03]} 35. Qf4+ {[%emt 0:03:09]} Kg6 {[%emt 0:00:04]} 36. Qg4+ {[%emt 0:01:45]} Kf6 {[%emt 0:00:13]} 37. Bg7+ {[%emt 0:02:47]} Ke7 {[%emt 0:00:33]} 38. Qg5+ {[%emt 0:00:51]} Kd7 {[%emt 0:01:24]} 39. Qd8+ {[%emt 0:00:34]} Kc6 {[%emt 0:00:03]} 40. Rc8+ {[%emt 0:01:02]} Kb7 {[%emt 0:00:15]} 41. Rxc4 {[%emt 0:30:27]} dxc4 {[%emt 0:30:04]} 42. Be5 {[%emt 0:01:08]} Rc6 {[%emt 0:00:55]} 43. Qb8+ {[%emt 0:00:00]} Ka6 {[%emt 0:00:00]} 44. Qe8 {[%emt 0:00:00]} 1-0

[Event "11th LCC FIDE Open 2019"]
[Site "London"]
[Date "2019.11.30"]
[Round "2.51"]
[White "Barasi, Paul Dl"]
[Black "Orgler, Philipp"]
[Result "1/2-1/2"]
[ECO "D03"]
[WhiteElo "1770"]
[BlackElo "2047"]
[Annotator "NA"]
[PlyCount "86"]
[EventDate "2019.11.29"]
[EventType "swiss"]
[EventCountry "ENG"]
[SourceTitle "playchess.com"]
[Source "ChessBase"]
[SourceQuality "1"]
[TimeControl "40/5400+30:1800+30"]

1. d4 {[%emt 0:00:00]} Nf6 {[%emt 0:04:10]} 2. Bg5 {[%emt 0:01:00]} d5 {[%emt 0:00:24]} 3. e3 {[%emt 0:00:09]} e6 {[%emt 0:00:15]} 4. Nd2 {[%emt 0:00:09]} Be7 {[%emt 0:00:29]} 5. Bd3 {[%emt 0:01:28]} c5 {[%emt 0:00:18]} 6. c3 {[%emt 0:00:09]} b6 {[%emt 0:00:37]} 7. f4 {[%emt 0:00:13]} Bb7 {[%emt 0:01:14]} 8. Ngf3 {[%emt 0:00:49]} Nbd7 {[%emt 0:00:59]} 9. O-O {[%emt 0:05:23]} Ne4 {[%emt 0:04:05]} 10. Bxe7 {[%emt 0:12:19]} Qxe7 {[%emt 0:00:06]} 11. Ne5 $11 {[%emt 0:06:18]} O-O {[%emt 0:11:12]} 12. Nxd7 {[%emt 0:04:10]} Qxd7 {[%emt 0:01:02]} 13. Rf3 {[%emt 0:00:06]} f5 {[%emt 0:03:54]} 14. Rh3 {[%emt 0:07:11]} Nxd2 {[%emt 0:00:32]} 15. Qxd2 {[%emt 0:00:06]} Rac8 {[%emt 0:00:44]} 16. Qe2 {[%emt 0:04:42]} Rc7 {[%emt 0:01:46]} 17. a3 {[%emt 0:04:17]} Rfc8 {[%emt 0:04:09]} 18. Rf1 {[%emt 0:06:31]} g6 {[%emt 0:04:22]} 19. Rff3 {[%emt 0:01:09]} Bc6 {[%emt 0:08:50]} 20. Rh6 {[%emt 0:08:25]} a5 {[%emt 0:03:25]} 21. Rfh3 {[%emt 0:04:56]} Rb8 {[%emt 0:01:07]} 22. Rxh7 {[%emt 0:03:26]} Qxh7 {[%emt 0:00:10]} 23. Rxh7 {[%emt 0:00:07]} Rxh7 {[%emt 0:02:06]} 24. Bb5 {[%emt 0:02:06]} Bb7 {[%emt 0:03:38]} 25. Ba4 {[%emt 0:09:47]} c4 {[%emt 0:01:52]} 26. Qf3 {[%emt 0:01:43]} Kf7 {[%emt 0:08:44]} 27. Qg3 {[%emt 0:00:48]} Rbh8 {[%emt 0:07:04]} 28. h3 {[%emt 0:00:36]} Ba6 {[%emt 0:03:02]} 29. Bd7 {[%emt 0:03:38]} Rg7 {[%emt 0:04:02]} 30. a4 {[%emt 0:02:06]} Ke7 {[%emt 0:04:35]} 31. Bc6 {[%emt 0:00:29]} Kd6 {[%emt 0:00:49]} 32. Bb5 {[%emt 0:00:22]} Bxb5 {[%emt 0:00:07]} 33. axb5 {[%emt 0:00:02]} Rh5 {[%emt 0:01:02]} 34. Kf2 {[%emt 0:01:13]} Ke7 {[%emt 0:03:13]} 35. Qf3 {[%emt 0:00:29]} Rgh7 {[%emt 0:00:38]} 36. Qd1 {[%emt 0:00:41]} Kf6 {[%emt 0:00:53]} 37. Qa4 {[%emt 0:00:13]} Rd7 {[%emt 0:01:28]} 38. Qa3 {[%emt 0:01:07]} Rh8 {[%emt 0:00:46]} 39. h4 {[%emt 0:02:10]} Kf7 {[%emt 0:01:39]} 40. g3 {[%emt 0:00:15]} Rhd8 {[%emt 0:01:06]} 41. Qa4 {[%emt 0:33:49]} Ra7 {[%emt 0:30:33]} 42. Kf3 {[%emt 0:00:31]} Kf6 {[%emt 0:01:51]} 43. Kg2 {[%emt 0:00:06]} Kf7 {[%emt 0:01:44]} 1/2-1/2

[Event "11th LCC FIDE Open 2019"]
[Site "London"]
[Date "2019.11.30"]
[Round "2.53"]
[White "Gaier, Walter"]
[Black "Vaddadi, Seshagiri"]
[Result "1/2-1/2"]
[ECO "B20"]
[WhiteElo "1750"]
[BlackElo "2042"]
[Annotator "NA"]
[PlyCount "103"]
[EventDate "2019.11.29"]
[EventType "swiss"]
[EventCountry "ENG"]
[SourceTitle "playchess.com"]
[Source "ChessBase"]
[SourceQuality "1"]
[TimeControl "40/5400+30:1800+30"]

1. e4 {[%emt 0:51:48]} c5 {[%emt 0:00:08]} 2. b4 {[%emt 0:00:07]} cxb4 {[%emt 0:01:50]} 3. a3 {[%emt 0:00:06]} d5 {[%emt 0:02:40]} 4. e5 {[%emt 0:00:14]} Nc6 {[%emt 0:05:11]} 5. d4 {[%emt 0:00:21]} Qb6 $15 {[%emt 0:17:46]} 6. Ne2 {[%emt 0:04:18]} Bf5 {[%emt 0:01:51]} 7. Bb2 {[%emt 0:11:45]} e6 {[%emt 0:02:15]} 8. a4 {[%emt 0:01:40]} Be7 {[%emt 0:07:57]} 9. Nd2 {[%emt 0:05:01]} Nh6 {[%emt 0:03:51]} 10. Nb3 {[%emt 0:04:12]} Rc8 {[%emt 0:13:02]} 11. Ng3 {[%emt 0:05:08]} Bg6 {[%emt 0:01:47]} 12. Bd3 {[%emt 0:01:09]} O-O {[%emt 0:03:08]} 13. O-O {[%emt 0:01:04]} f6 {[%emt 0:08:10]} 14. f4 {[%emt 0:11:33]} Bxd3 15. cxd3 {[%emt 0:02:41]} a5 {[%emt 0:02:20]} 16. Qe2 {[%emt 0:03:23]} Nd8 {[%emt 0:05:03]} 17. Rac1 {[%emt 0:02:26]} Rxc1 {[%emt 0:01:28]} 18. Rxc1 {[%emt 0:03:13]} fxe5 {[%emt 0:00:16]} 19. fxe5 {[%emt 0:00:30]} Bg5 {[%emt 0:04:09]} 20. Rc5 {[%emt 0:03:20]} Nc6 {[%emt 0:00:31]} 21. Rb5 {[%emt 0:00:32]} Qc7 {[%emt 0:00:35]} 22. Nc5 {[%emt 0:00:45]} Nd8 {[%emt 0:02:31]} 23. Nf1 {[%emt 0:23:07]} b6 {[%emt 0:01:19]} 24. Nb3 {[%emt 0:02:50]} Qf7 {[%emt 0:02:33]} 25. Nbd2 {[%emt 0:01:46]} Qc7 {[%emt 0:01:45]} 26. Nf3 {[%emt 0:01:32]} Be7 {[%emt 0:00:12]} 27. Ne3 {[%emt 0:00:25]} Nc6 {[%emt 0:00:25]} 28. Qc2 {[%emt 0:03:29]} Rc8 {[%emt 0:00:23]} 29. h3 {[%emt 0:04:35]} Bd8 {[%emt 0:01:06]} 30. Qb3 {[%emt 0:01:17]} Na7 {[%emt 0:02:03]} 31. Nxd5 {[%emt 0:03:22]} exd5 {[%emt 0:00:10]} 32. Rxd5 {[%emt 0:00:18]} Kh8 {[%emt 0:02:27]} 33. e6 {[%emt 0:01:01]} Qf4 {[%emt 0:01:11]} 34. Rd7 {[%emt 0:00:33]} Qe3+ {[%emt 0:02:48]} 35. Kh2 {[%emt 0:00:35]} Bc7+ {[%emt 0:01:00]} 36. Ne5 {[%emt 0:01:05]} Nc6 {[%emt 0:01:29]} 37. Qd5 {[%emt 0:00:28]} Qf4+ {[%emt 0:00:48]} 38. Kg1 {[%emt 0:00:17]} Nxd4 {[%emt 0:00:35]} 39. Bxd4 {[%emt 0:00:17]} Bxe5 {[%emt 0:00:33]} 40. Rd8+ {[%emt 0:00:28]} Ng8 {[%emt 0:00:06]} 41. Rxc8 {[%emt 0:00:54]} Bxd4+ {[%emt 0:00:46]} 42. Kh1 {[%emt 0:01:17]} Qf1+ {[%emt 0:01:29]} 43. Kh2 {[%emt 0:00:12]} Qf4+ {[%emt 0:14:56]} 44. Kh1 {[%emt 0:09:47]} Qf1+ {[%emt 0:00:59]} 45. Kh2 {[%emt 0:00:12]} Qf4+ {[%emt 0:06:48]} 46. Kh1 {[%emt 0:13:04]} Qf1+ {[%emt 0:00:13]} 47. Kh2 {[%emt 0:00:36]} Bg1+ {[%emt 0:00:02]} 48. Kg3 {[%emt 0:00:01]} Qe1+ {[%emt 0:00:01]} 49. Kg4 {[%emt 0:00:12]} Qe2+ {[%emt 0:00:06]} 50. Kg3 {[%emt 0:00:16]} Bd4 {[%emt 0:01:13]} 51. Kh2 {[%emt 0:00:01]} Qf2 {[%emt 0:00:04] g3} 52. Qf3 {[%emt 0:00:06]} 1/2-1/2